bitfinex-derivatives/quotes_SOLF0:USTF0_20250712
["timestamp","ask_amount","ask_price","bid_price","bid_amount"]
[1752305572861,3.34411831,163.45,163.36,18.12385001]
[1752305572862,3.34411831,163.45,163.43,6.1158]
[1752305573165,3.34411831,163.45,163.43,3.42]
[1752305573363,3.34411831,163.45,163.43,9.536]
[1752305575764,3.34411831,163.45,163.43,3.42]
[1752305576566,3.34411831,163.45,163.42,9.5363]
[1752305577868,3.34411831,163.45,163.43,6.116]
[1752305578764,3.34411831,163.45,163.43,9.536]
[1752305582669,3.34411831,163.45,163.43,6.116]
[1752305583270,3.34411831,163.45,163.41,3.42]
[1752305583472,3.34411831,163.45,163.37,3.42]
[1752305585267,6.15941831,163.45,163.38,3.42]
[1752305585459,3.31,163.44,163.38,3.42]
[1752305585866,3.31,163.44,163.36,12.7109643]
[1752305586071,3.31,163.44,163.37,3.42]
[1752305586271,3.31,163.44,163.36,3.42]
[1752305586468,3.31,163.43,163.36,3.42]
[1752305586870,3.31,163.43,163.41,6.1165]
[1752305587071,3.31,163.43,163.41,9.5365]
[1752305587574,3.31,163.43,163.42,6.1164]
[1752305587773,3.31,163.43,163.42,9.5364]
[1752305587970,3.35055989,163.44,163.42,3.42]
[1752305588170,3.35055989,163.44,163.43,9.536]
[1752305589370,3.35055989,163.44,163.43,6.116]
[1752305590278,3.35055989,163.44,163.42,9.5363]
[1752305590479,3.35055989,163.44,163.41,3.42]
[1752305591369,3.35055989,163.44,163.41,9.5365]
[1752305591678,3.35055989,163.44,163.41,6.1165]
[1752305591879,3.31,163.43,163.4,6.117]
[1752305592084,3.31,163.43,163.37,3.42]
[1752305592476,3.31,163.43,163.34,6.82421429]
[1752305592477,3.31,163.43,163.4,6.1168]
[1752305593182,3.35395332,163.43,163.4,6.1168]
[1752305593982,9.47025332,163.43,163.39,9.5374]
[1752305594280,3.31,163.42,163.39,9.5374]
[1752305594478,3.31,163.42,163.4,6.1171]
[1752305595883,3.31,163.42,163.41,6.1168]
[1752305596377,3.31,163.42,163.4,6.1171]
[1752305596984,3.31,163.42,163.4,9.5871]
[1752305598588,3.31,163.42,163.4,3.47]
[1752305598787,3.31,163.42,163.35,3.47]
[1752305599488,3.39088607,163.4,163.35,3.47]
[1752305599685,3.39088607,163.4,163.39,9.5872]
[1752305599892,3.39088607,163.4,163.39,6.1172]
[1752305600085,3.39088607,163.4,163.36,3.47]
[1752305600386,3.39088607,163.4,163.39,9.5875]
[1752305600783,3.39088607,163.4,163.38,0.04213413]
[1752305600784,3.39088607,163.4,163.38,3.47]
[1752305600987,3.39088607,163.4,163.37,3.47]
[1752305601388,3.39088607,163.4,163.37,9.588]
[1752305601591,3.39088607,163.4,163.32,5.88675001]
[1752305601791,3.39088607,163.4,163.38,3.47]
[1752305602083,3.39088607,163.4,163.38,9.5879]
[1752305603082,3.39088607,163.4,163.38,6.1179]
[1752305603487,3.39088607,163.4,163.37,9.5882]
[1752305603691,3.35,163.39,163.33,3.47]
[1752305604079,3.35,163.39,163.36,6.1184]
[1752305604686,3.35,163.39,163.36,9.5884]
[1752305604893,3.35,163.39,163.36,6.1184]
[1752305605092,3.35,163.39,163.34,3.47]
[1752305605093,9.4678,163.39,163.35,6.1188]
[1752305605288,3.35,163.38,163.35,3.47]
[1752305605689,3.35,163.38,163.3,5.88675001]
[1752305605891,3.35,163.38,163.31,3.47]
[1752305606084,3.35,163.4,163.33,5.88675001]
[1752305606292,3.35,163.4,163.39,9.5873]
[1752305606590,0.04652207,163.38,163.37,3.47]
[1752305606791,3.39652207,163.38,163.37,3.47]
[1752305607094,3.35,163.38,163.37,3.47]
[1752305608194,3.35,163.38,163.37,9.588]
[1752305610193,3.393539,163.39,163.38,6.1179]
[1752305610394,3.393539,163.39,163.38,9.5879]
[1752305611898,0.043539,163.39,163.38,9.5879]
[1752305613497,3.393539,163.39,163.38,6.1179]
[1752305614399,3.393539,163.39,163.37,6.1181]
[1752305615997,3.35,163.38,163.36,6.1186]
[1752305616298,3.35,163.38,163.36,6.15851485]
[1752305616593,3.35,163.38,163.36,0.03991485]
[1752305617294,3.35,163.38,163.36,6.15851485]
[1752305619293,9.468,163.38,163.36,0.03991485]
[1752305619489,3.35,163.37,163.36,0.03991485]
[1752305620406,3.35,163.37,163.31,3.47]
[1752305620602,3.35,163.36,163.31,3.47]
[1752305620800,3.35,163.36,163.3,3.47]
[1752305621201,3.35,163.36,163.29,80.09069532]
[1752305621398,6.1198,163.33,163.29,80.09069532]
[1752305621698,3.35,163.32,163.29,3.47]
[1752305622200,3.35,163.32,163.29,9.591]
[1752305622703,6.1202,163.32,163.29,9.591]
[1752305623004,3.35,163.31,163.29,9.591]
[1752305623504,3.35,163.31,163.29,6.121]
[1752305624102,3.35,163.3,163.27,9.5919]
[1752305624295,3.35,163.3,163.21,535.44421429]
[1752305624296,3.35,163.3,163.22,3.47]
[1752305624901,5.88675001,163.34,163.22,3.47]
[1752305624902,0.04567074,163.28,163.22,3.47]
[1752305625301,3.37567074,163.28,163.27,9.6118]
[1752305625604,3.37567074,163.28,163.27,6.1218]
[1752305626303,3.37567074,163.28,163.25,9.6126]
[1752305626494,3.37567074,163.28,163.2,3.49]
[1752305626902,3.37567074,163.28,163.26,9.6123]
[1752305627501,3.37567074,163.28,163.27,9.612]
[1752305632299,0.04567074,163.28,163.27,9.612]
[1752305632704,3.37567074,163.28,163.27,9.612]
[1752305633210,0.04567074,163.28,163.27,9.612]
[1752305636806,3.33,163.32,163.31,9.6105]
[1752305637001,3.33,163.34,163.32,3.49]
[1752305637205,3.33,163.36,163.32,3.49]
[1752305637407,3.33,163.36,163.34,6.119]
[1752305637614,3.33,163.36,163.33,3.49]
[1752305638001,3.37530926,163.36,163.33,3.49]
[1752305638210,3.37530926,163.36,163.34,3.49]
[1752305639208,3.37530926,163.36,163.35,6.119]
[1752305640518,3.37530926,163.36,163.34,6.1193]
[1752305640710,3.37530926,163.36,163.28,3.49]
[1752305641103,3.37530926,163.36,163.31,6.1202]
[1752305641104,3.33,163.34,163.31,6.1202]
[1752305641309,3.33,163.33,163.29,3.49]
[1752305641813,3.33,163.33,163.3,6.1206]
[1752305642015,3.37576749,163.33,163.24,5.89565338]
[1752305642215,6.1202,163.32,163.29,6.121]
[1752305642414,3.33,163.31,163.29,6.121]
[1752305644016,3.33,163.31,163.3,6.1209]
[1752305646218,0.04576749,163.33,163.32,6.1202]
[1752305646613,177.46,163.34,163.32,6.1202]
[1752305646816,3.33,163.33,163.32,6.1202]
[1752305647214,3.33,163.33,163.31,6.1205]
[1752305647416,3.33,163.33,163.3,3.49]
[1752305647714,3.33,163.33,163.25,3.49]
[1752305648522,0.04702005,163.31,163.25,3.49]
[1752305648820,0.04702005,163.31,163.3,9.6109]
[1752305649212,3.37702005,163.31,163.3,6.1209]
[1752305653432,3.37702005,163.31,163.3,9.6109]
[1752305654125,0.04702005,163.31,163.3,9.6109]
[1752305657227,3.32,163.35,163.34,6.1194]
[1752305657420,3.32,163.35,163.34,9.6894]
[1752305657621,3.32,163.36,163.34,3.57]
[1752305658120,3.32,163.36,163.35,6.119]
[1752305658319,3.32,163.36,163.35,9.689]
[1752305658527,3.32,163.37,163.34,0.04197743]
[1752305658825,3.32,163.37,163.36,6.1187]
[1752305661525,3.32,163.37,163.34,0.04197743]
[1752305662227,3.32,163.36,163.34,0.04197743]
[1752305663126,9.4388,163.36,163.34,0.04197743]
[1752305663330,3.32,163.35,163.34,0.04197743]
[1752305664229,3.32,163.35,163.34,6.16097743]
[1752305664529,3.32,163.35,163.34,9.73097743]
[1752305664827,3.32,163.37,163.36,6.1185]
[1752305666729,3.32,163.37,163.36,9.6885]
[1752305672636,180.76,163.38,163.37,9.6883]
[1752305674740,143.0394852,163.38,163.37,9.6883]
[1752305675131,3.32,163.4,163.34,0.04197743]
[1752305675132,3.32,163.4,163.39,6.1175]
[1752305675336,3.32,163.4,163.34,0.04197743]
[1752305675637,3.32,163.4,163.35,3.56]
[1752305675837,3.32,163.4,163.38,6.1178]
[1752305685445,3.32,163.4,163.39,6.1175]
[1752305691644,3.32,163.4,163.39,9.6475]
[1752305695251,3.32,163.4,163.39,6.1175]
[1752305695646,3.32,163.4,163.38,6.1178]
[1752305695950,3.32,163.4,163.36,3.53]
[1752305696644,3.32,163.4,163.38,6.1178]
[1752305698851,9.4372,163.4,163.37,6.1181]
[1752305699050,3.36,163.39,163.37,6.1181]
[1752305699247,3.36,163.39,163.36,3.53]
[1752305699550,177.24,163.38,163.35,3.57282606]
[1752305699953,3.36,163.37,163.35,3.57282606]
[1752305700147,3.36,163.37,163.36,6.1185]
[1752305701551,3.36,163.37,163.36,9.6485]
[1752305702148,3.36,163.37,163.35,6.16172606]
[1752305703650,3.36,163.37,163.36,6.1187]
[1752305703851,3.36,163.37,163.35,0.04282606]
[1752305705154,6.1187,163.36,163.35,0.04282606]
[1752305705450,3.36,163.36,163.35,0.04282606]
[1752305706252,5.13751911,163.41,163.35,3.57282606]
[1752305706449,177.24,163.41,163.35,3.57282606]
[1752305706747,3.36,163.39,163.38,9.6476]
[1752305707254,3.36,163.4,163.39,9.6473]
[1752305708656,3.36,163.4,163.39,3.53]
[1752305708853,3.36,163.4,163.36,3.53]
[1752305709150,3.36,163.4,163.38,6.1176]
[1752305709353,3.36,163.4,163.39,3.53]
[1752305709953,3.36,163.4,163.39,9.6475]
[1752305710146,3.36,163.4,163.39,6.1175]
[1752305711556,3.36,163.4,163.39,9.6475]
[1752305715366,3.36,163.4,163.39,6.1175]
[1752305716563,3.53,163.39,163.37,9.4681]
[1752305716762,3.53,163.39,163.37,6.1181]
[1752305717966,3.53,163.38,163.37,6.1181]
[1752305718865,6.1179,163.38,163.35,9.51172606]
[1752305719068,3.53,163.37,163.35,0.04282606]
[1752305719455,180.71,163.37,163.35,6.16182606]
[1752305719659,3.53,163.36,163.35,6.16182606]
[1752305720561,3.53,163.36,163.35,9.51182606]
[1752305720764,3.53,163.36,163.35,6.16182606]
[1752305720971,3.53,163.36,163.35,3.39282606]
[1752305722180,3.53,163.36,163.35,9.51182606]
[1752305729188,180.71,163.37,163.36,9.4687]
[1752305729982,180.71,163.37,163.35,0.04282606]
[1752305730281,3.53,163.36,163.35,3.39282606]
[1752305730582,3.53,163.36,163.35,9.51182606]
[1752305735491,3.53,163.36,163.35,0.04282606]
[1752305736087,9.6487,163.36,163.35,0.04282606]
[1752305739593,3.53,163.33,163.32,3.35]
[1752305741192,3.53,163.33,163.32,9.4702]
[1752305741387,9.65,163.33,163.26,6.82421429]
[1752305741588,3.53,163.34,163.27,3.35]
[1752305742094,3.53,163.31,163.27,3.35]
[1752305742588,3.53,163.31,163.28,6.1216]
[1752305742795,3.53,163.31,163.28,9.4716]
[1752305743292,3.53,163.3,163.28,9.4716]
[1752305743592,3.53,163.3,163.29,6.1213]
[1752305743795,3.53,163.3,163.25,3.35]
[1752305744289,3.53,163.3,163.28,9.4714]
[1752305744497,3.57503467,163.29,163.28,9.4714]
[1752305745092,3.57503467,163.29,163.27,9.662]
[1752305745288,3.57503467,163.29,163.27,6.122]
[1752305746094,9.69633467,163.29,163.26,6.1223]
[1752305746295,3.53,163.28,163.26,3.54]
[1752305746993,3.53,163.28,163.26,9.6623]
[1752305748398,3.53,163.28,163.2,528.7]
[1752305748399,9.6519,163.28,163.2,528.7]
[1752305748701,3.53,163.27,163.21,3.54]
[1752305749199,3.53,163.25,163.21,3.54]
[1752305750395,3.53,163.24,163.21,3.54]
[1752305750695,3.53,163.24,163.23,9.6635]
[1752305750999,3.53,163.24,163.23,6.1235]
[1752305751392,3.53,163.24,163.23,9.6635]
[1752305754101,3.53,163.24,163.17,3.54]
[1752305754601,3.53,163.23,163.2,9.6644]
[1752305755297,3.5709103,163.23,163.2,9.6644]
[1752305755801,3.5709103,163.23,163.21,6.1242]
[1752305756300,3.5709103,163.23,163.2,9.6644]
[1752305756601,3.5709103,163.23,163.2,3.54]
[1752305757600,3.5709103,163.23,163.21,3.54]
[1752305757806,3.5709103,163.23,163.17,3.54]
[1752305758102,3.5709103,163.23,163.21,6.124]
[1752305758404,3.5709103,163.23,163.21,9.664]
[1752305759001,3.53,163.27,163.22,3.54]
[1752305759694,3.53,163.27,163.2,5.94748176]
[1752305759695,3.53,163.27,163.26,9.6624]
[1752305762705,3.53,163.27,163.25,0.03972692]
[1752305763300,6.1223,163.27,163.25,0.03972692]
[1752305763604,3.53,163.26,163.25,0.03972692]
[1752305764101,9.6524,163.26,163.25,0.03972692]
[1752305764603,3.53,163.26,163.25,0.03972692]
[1752305764909,9.6524,163.26,163.25,0.03972692]
[1752305765304,3.53,163.26,163.12,728.45132353]
[1752305765510,177.18,163.34,163.12,728.45132353]
[1752305765511,6.1232,163.24,163.21,6.1241]
[1752305765703,3.53,163.23,163.21,6.1241]
[1752305767507,9.6535,163.23,163.2,6.1245]
[1752305767706,3.53,163.23,163.19,3.54]
[1752305767999,3.53,163.23,163.18,3.54]
[1752305768707,3.53,163.21,163.19,6.1248]
[1752305768897,3.53,163.21,163.18,3.54]
[1752305769101,3.53,163.21,163.19,3.54]
[1752305769302,3.53,163.21,163.17,3.54]
[1752305769508,3.53,163.21,163.14,3.54]
[1752305769699,3.57203569,163.21,163.14,3.54]
[1752305770007,6.16643569,163.21,163.18,6.1251]
[1752305770206,3.53,163.2,163.18,3.54]
[1752305770504,3.53,163.2,163.18,6.1253]
[1752305770906,3.53,163.2,163.18,3.54]
[1752305771408,3.53,163.2,163.14,3.54]
[1752305771911,6.1249,163.2,163.14,3.54]
[1752305772102,3.53,163.19,163.14,3.54]
[1752305772905,3.53,163.19,163.07,6.82421429]
[1752305773100,3.53,163.19,163.04,541.401]
[1752305773101,3.53,163.18,163.08,3.54]
[1752305773505,0.04440566,163.15,163.13,3.54]
[1752305774005,3.53,163.14,163.13,9.6673]
[1752305774709,3.53,163.14,163.05,3.44]
[1752305775106,3.53,163.14,163.1,6.1281]
[1752305775409,0.03882415,163.11,163.1,9.5681]
[1752305775604,3.37882415,163.11,163.1,9.5681]
[1752305775805,3.34,163.11,163.1,6.1281]
[1752305776207,3.34,163.11,163.07,3.44]
[1752305776811,3.38593129,163.11,163.04,3.44]
[1752305777408,0.04593129,163.11,163.09,9.5687]
[1752305777613,3.34,163.1,163.09,9.5687]
[1752305778513,3.34,163.1,163.09,6.1287]
[1752305778812,3.34,163.1,163.05,3.44]
[1752305779613,5.90979699,163.13,163.0,5.90979699]
[1752305779614,0.04615567,163.09,163.08,6.1291]
[1752305779814,3.38615567,163.09,163.08,6.1291]
[1752305782116,3.38615567,163.09,163.08,9.5691]
[1752305783717,3.38615567,163.09,163.08,6.1291]
[1752305784615,0.04615567,163.09,163.08,9.5691]
[1752305784815,3.34,163.13,163.12,6.1277]
[1752305785015,119.26127104,163.18,163.09,5.90979699]
[1752305785216,3.34,163.14,163.13,3.44]
[1752305785515,3.34,163.14,163.13,9.5673]
[1752305787321,125.38677104,163.18,163.15,6.1263]
[1752305787619,119.26127104,163.18,163.15,6.1263]
[1752305788015,3.34,163.17,163.15,6.1263]
[1752305788417,3.34,163.17,163.14,6.1268]
[1752305788816,3.34,163.17,163.15,6.1264]
[1752305789719,3.34,163.17,163.12,0.04390276]
[1752305790019,3.34,163.14,163.01,3.44]
[1752305790217,6.1294,163.08,163.04,6.1304]
[1752305790422,3.34,163.09,163.05,3.44]
[1752305791020,3.34,163.09,163.03,3.44]
[1752305791422,0.04058523,163.08,163.03,3.44]
[1752305791621,3.34,163.07,163.04,3.44]
[1752305791922,3.34,163.07,162.96,529.14]
[1752305792127,3.34,163.06,163.05,3.44]
[1752305793215,3.34,163.05,162.97,3.44]
[1752305793912,0.04454327,163.03,162.97,3.44]
[1752305794517,0.04454327,163.03,163.02,9.5714]
[1752305796526,0.00064051,163.03,163.02,9.5714]
[1752305797621,3.34,163.1,163.02,3.44]
[1752305798134,3.34,163.13,163.1,9.5682]
[1752305798625,3.34,163.13,163.1,3.44]
[1752305799428,3.34,163.13,163.1,3.48698351]
[1752305800027,6.1279,163.12,163.1,3.48698351]
[1752305800227,3.34,163.11,163.1,3.48698351]
[1752305800631,3.34,163.11,163.1,9.61538351]
[1752305800826,3.34,163.13,163.11,3.44]
[1752305801028,181.32,163.14,163.11,3.44]
[1752305801430,177.98,163.14,163.12,6.1274]
[1752305801626,3.34,163.13,163.12,3.44]
[1752305801930,177.98,163.14,163.13,6.1273]
[1752305802130,181.32,163.14,163.13,9.5673]
[1752305802526,3.34,163.14,163.13,9.5673]
[1752305803030,5.91045722,163.18,163.15,3.44]
[1752305803230,5.91045722,163.18,163.1,0.04698351]
[1752305803429,3.34,163.17,163.14,3.44]
[1752305803631,6.126,163.17,163.14,3.44]
[1752305803931,3.34,163.16,163.14,3.44]
[1752305804330,3.34,163.15,163.14,3.44]
[1752305804728,3.34,163.15,163.14,9.5669]
[1752305805133,3.51,163.17,163.13,3.41]
[1752305805527,3.51,163.17,163.16,3.41]
[1752305805833,177.96,163.19,163.12,0.04661276]
[1752305806033,3.51,163.18,163.17,3.41]
[1752305806436,3.51,163.18,163.17,9.5358]
[1752305807233,177.96,163.19,163.18,9.5354]
[1752305807441,3.51,163.18,163.16,0.04598957]
[1752305807837,3.51,163.17,163.16,9.58188957]
[1752305808434,3.51,163.18,163.17,3.41]
[1752305808946,184.0853,163.19,163.16,9.58208957]
[1752305809138,3.51,163.17,163.16,9.58208957]
[1752305810742,177.96,163.19,163.16,6.17208957]
[1752305811042,3.51,163.18,163.17,3.41]
[1752305811543,3.51,163.18,163.17,9.5358]
[1752305812244,3.51,163.18,163.17,3.41]
[1752305815147,3.51,163.18,163.17,9.5358]
[1752305820649,181.47,163.19,163.18,6.1254]
[1752305820848,181.47,163.19,163.18,9.5354]
[1752305823147,3.51,163.22,163.21,6.1243]
[1752305823352,3.51,163.22,163.18,3.41]
[1752305823847,3.51,163.22,163.21,3.41]
[1752305826147,9.6339,163.22,163.21,3.41]
[1752305826347,9.6339,163.22,163.19,6.1249]
[1752305826547,3.51,163.21,163.2,3.41]
[1752305826748,9.6343,163.21,163.18,0.04363857]
[1752305826949,3.51,163.2,163.19,3.41]
[1752305827250,177.54,163.2,163.18,3.45363857]
[1752305827452,3.51,163.19,163.18,3.45363857]
[1752305827948,177.54,163.2,163.18,3.45363857]
[1752305830251,177.54,163.2,163.19,9.535]
[1752305831453,177.54,163.2,163.19,3.41]
[1752305831454,181.05,163.2,163.19,3.41]
[1752305833153,3.55213088,163.23,163.2,3.41]
[1752305833348,180.99213088,163.23,163.2,3.41]
[1752305833547,180.99213088,163.23,163.22,3.41]
[1752305834150,0.04213088,163.23,163.22,9.5339]
[1752305834852,181.45,163.29,163.27,3.51]
[1752305835055,177.94,163.29,163.28,3.51]
[1752305835455,3.32,163.31,163.28,3.51]
[1752305835646,177.98,163.33,163.28,3.51]
[1752305836157,181.3,163.33,163.3,6.1207]
[1752305836453,181.3,163.33,163.32,3.51]
[1752305837350,3.32,163.32,163.3,3.51]
[1752305837548,184.1001,163.33,163.3,3.51]
[1752305837749,3.32,163.31,163.3,3.51]
[1752305838346,177.98,163.33,163.29,0.04533563]
[1752305838554,3.32,163.3,163.29,3.55533563]
[1752305839259,3.32,163.3,163.29,0.04533563]
[1752305839559,3.32,163.3,163.21,3.51]
[1752305839759,3.32,163.28,163.21,3.51]
[1752305840759,3.3641783,163.26,163.25,3.51]
[1752305840958,3.32,163.25,163.24,3.51]
[1752305845961,9.4428,163.25,163.24,3.51]
[1752305846261,3.32,163.24,163.19,3.51]
[1752305846559,3.32,163.21,163.13,3.51]
[1752305846763,184.61862825,163.23,163.19,3.51]
[1752305847251,3.32,163.2,163.19,3.51]
[1752305848261,6.124,163.22,163.11,5.89862825]
[1752305848455,178.76232337,163.23,163.2,3.51]
[1752305848763,182.04,163.23,163.2,3.51]
[1752305849064,182.08223425,163.23,163.2,3.51]
[1752305849261,182.08223425,163.23,163.2,9.6345]
[1752305849464,182.08223425,163.23,163.2,6.1245]
[1752305849656,182.08223425,163.23,163.21,3.51]
[1752305849861,182.08223425,163.23,163.22,3.51]
[1752305852666,178.76223425,163.23,163.22,3.51]
[1752305853063,182.08223425,163.23,163.22,3.51]
[1752305854362,188.20573425,163.23,163.2,6.1246]
[1752305854566,188.20573425,163.23,163.21,3.51]
[1752305854567,3.32,163.22,163.21,3.51]
[1752305855968,3.32,163.22,163.21,9.6343]
[1752305856171,178.76223425,163.23,163.21,9.6343]
[1752305856365,182.08223425,163.23,163.22,3.51]
[1752305856866,178.76223425,163.23,163.22,3.51]
[1752305859168,0.04223425,163.23,163.22,9.6339]
[1752305864870,3.39223425,163.23,163.22,9.6339]
[1752305865373,3.39223425,163.23,163.22,3.51]
[1752305865769,9.51573425,163.23,163.22,3.51]
[1752305866071,3.35,163.22,163.21,3.3]
[1752305866873,9.4739,163.22,163.21,3.3]
[1752305867572,3.35,163.22,163.21,3.3]
[1752305869070,9.4739,163.22,163.21,3.3]
[1752305869374,3.35,163.22,163.19,6.1249]
[1752305869574,3.35,163.22,163.2,3.3]
[1752305870175,6.1246,163.21,163.19,3.3]
[1752305870476,3.35,163.19,163.18,3.3]
[1752305874378,9.475,163.19,163.18,3.3]
[1752305875778,3.35,163.19,163.18,3.3]
[1752305876280,3.39588753,163.2,163.18,3.3]
[1752305876682,9.52058753,163.2,163.18,3.3]
[1752305876980,9.52058753,163.2,163.19,3.3]
[1752305878684,6.125,163.19,163.17,6.1256]
[1752305878879,9.475,163.19,163.18,3.3]
[1752305880080,6.1255,163.18,163.16,6.126]
[1752305880286,9.4755,163.18,163.17,3.3]
[1752305883580,3.35,163.18,163.17,3.3]
[1752305886887,9.4754,163.18,163.17,3.3]
[1752305887084,0.04149665,163.19,163.16,3.3]
[1752305887085,3.35,163.17,163.16,3.3]
[1752305887988,9.4755,163.18,163.16,3.3]
[1752305888290,3.35,163.18,163.1,3.3]
[1752305888590,6.1251,163.19,163.11,3.3]
[1752305889088,9.4751,163.19,163.11,3.3]
[1752305889291,3.35,163.18,163.17,3.3]
[1752305890785,3.35,163.22,163.17,3.3]
[1752305891288,6.1245,163.21,163.18,6.1252]
[1752305891585,3.35,163.23,163.19,3.3]
[1752305892494,3.35,163.24,163.21,3.3]
[1752305892690,3.35,163.25,163.21,3.3]
[1752305893093,3.35,163.24,163.23,3.3]
[1752305893800,9.473,163.25,163.23,3.3]
[1752305893996,9.473,163.25,163.24,3.3]
[1752305894689,9.473,163.25,163.22,6.1239]
[1752305894690,3.57,163.24,163.17,3.32]
[1752305896300,3.57,163.22,163.21,3.32]
[1752305897396,3.57,163.22,163.21,6.1243]
[1752305897601,3.57,163.22,163.21,9.4443]
[1752305898502,3.57,163.22,163.21,3.32]
[1752305899301,9.6936,163.23,163.21,3.32]
[1752305902101,3.57,163.23,163.21,9.4442]
[1752305902307,6.1233,163.24,163.22,3.32]
[1752305902503,3.57,163.25,163.22,3.32]
[1752305902702,9.6929,163.25,163.22,6.1237]
[1752305902903,0.04533021,163.25,163.23,3.32]
[1752305903403,0.04533021,163.25,163.24,9.4431]
[1752305905005,3.61533021,163.25,163.24,3.32]
[1752305906108,3.61533021,163.25,163.24,9.4431]
[1752305906810,0.04533021,163.25,163.24,9.4431]
[1752305908214,3.61533021,163.25,163.24,3.32]
[1752305909707,3.57,163.24,163.22,3.32]
[1752305910510,9.6934,163.24,163.22,3.32]
[1752305910710,3.57,163.23,163.22,3.32]
[1752305911110,3.57,163.23,163.22,9.4438]
[1752305912513,3.57,163.24,163.23,6.1235]
[1752305912709,3.57,163.24,163.23,9.4435]
[1752305912910,0.04533021,163.25,163.22,3.32]
[1752305913113,0.04533021,163.25,163.24,9.4431]
[1752305923224,3.57,163.29,163.28,3.32]
[1752305924418,3.57,163.29,163.28,9.4416]
[1752305924721,3.57,163.29,163.28,3.32]
[1752305926513,3.57,163.29,163.27,3.379293]
[1752305927728,3.57,163.29,163.27,0.039293]
[1752305927925,3.57,163.29,163.28,3.34]
[1752305928623,6.1213,163.29,163.27,0.039293]
[1752305928827,3.46,163.28,163.27,0.039293]
[1752305929229,3.46,163.28,163.27,3.379293]
[1752305930822,9.5816,163.28,163.27,0.039293]
[1752305934126,0.04103699,163.29,163.22,9.4639]
[1752305934127,9.5828,163.25,163.22,9.4639]
[1752305934331,3.46,163.24,163.23,3.34]
[1752305934726,9.5831,163.24,163.23,3.34]
[1752305934928,9.5831,163.24,163.21,6.124]
[1752305935125,3.46,163.23,163.22,3.34]
[1752305936830,3.46,163.23,163.22,9.4639]
[1752305937232,3.46,163.23,163.22,3.34]
[1752305938630,3.46,163.23,163.19,3.34]
[1752305938932,5.90454809,163.2,163.14,3.34]
[1752305939133,3.46,163.19,163.14,3.34]
[1752305939334,6.1257,163.18,163.15,6.1265]
[1752305939530,6.1257,163.18,163.16,3.34]
[1752305939531,3.46,163.17,163.16,3.34]
[1752305940328,9.5858,163.17,163.16,3.34]
[1752305940732,3.46,163.19,163.16,6.1259]
[1752305940936,3.46,163.19,163.1,3.34]
[1752305941734,3.46,163.19,163.16,3.34]
[1752305941931,3.46,163.19,163.17,3.34]
[1752305942441,3.46,163.18,163.16,9.4661]
[1752305942831,3.46,163.18,163.16,3.34]